bitfinex/quotes_BTCUSD_20250326
["timestamp","ask_amount","ask_price","bid_price","bid_amount"]
[1743010926262,0.0001693,86946.0,86945.0,1.52830894]
[1743010926463,0.0001693,86946.0,86945.0,1.64256658]
[1743010927018,0.01818492,86946.0,86945.0,1.64256658]
[1743010931926,8e-07,86955.0,86954.0,0.366806]
[1743010932144,2e-07,86956.0,86955.0,0.25604485]
[1743010932361,2e-07,86956.0,86955.0,0.48456013]
[1743010933390,2e-07,86956.0,86955.0,0.4849671]
[1743010933784,2e-07,86956.0,86955.0,0.4909671]
[1743010934204,2e-07,86959.0,86958.0,0.241495]
[1743010934421,4e-07,86963.0,86962.0,0.25602485]
[1743010934633,4e-07,86963.0,86962.0,0.60455938]
[1743010936032,4e-07,86963.0,86962.0,0.60955938]
[1743010936729,0.01801163,86963.0,86962.0,0.60955938]
[1743010937186,0.01801163,86963.0,86962.0,0.61355938]
[1743010937460,0.01801163,86963.0,86962.0,1.03005883]
[1743010938912,4e-07,86963.0,86962.0,1.03005883]
[1743010939144,4e-07,86963.0,86962.0,1.11405883]
[1743010940121,4e-07,86963.0,86962.0,1.10505883]
[1743010940355,4e-07,86963.0,86962.0,1.10605883]
[1743010940558,4e-07,86963.0,86962.0,1.11205883]
[1743010942087,4e-07,86963.0,86962.0,1.10605883]
[1743010942299,4e-07,86963.0,86962.0,0.97237883]
[1743010942534,4e-07,86963.0,86962.0,1.01142194]
[1743010942746,4e-07,86963.0,86962.0,1.00542194]
[1743010942956,4e-07,86963.0,86962.0,1.60866194]
[1743010943919,4e-07,86963.0,86962.0,1.61366194]
[1743010944115,4e-07,86963.0,86962.0,1.72791958]
[1743010945280,0.0001694,86982.0,86962.0,1.72791958]
[1743010945281,4e-07,86982.0,86981.0,0.23993315]
[1743010945491,4e-07,86982.0,86981.0,0.91887069]
[1743010945902,4e-07,86982.0,86981.0,0.78523069]
[1743010946101,4e-07,86982.0,86981.0,0.93288583]
[1743010946622,4e-07,86982.0,86981.0,0.94288583]
[1743010947147,0.01800814,86982.0,86981.0,0.94288583]
[1743010947363,0.01800814,86982.0,86981.0,0.96584105]
[1743010948828,0.01800814,86982.0,86981.0,0.9803819]
[1743010949036,0.01800814,86982.0,86981.0,1.5775819]
[1743010950021,0.01800814,86982.0,86981.0,1.5675819]
[1743010950217,0.01800814,86982.0,86981.0,1.5735819]
[1743010950827,0.01800814,86982.0,86981.0,1.5795819]
[1743010951259,0.01800814,86982.0,86981.0,1.7068819]
[1743010951549,0.002,86989.0,86988.0,0.241411]
[1743010951765,0.002,86989.0,86988.0,0.48446713]
[1743010952848,0.002,86989.0,86988.0,0.4848741]
[1743010953055,0.002,86989.0,86988.0,0.4938741]
[1743010953992,0.0779,87018.0,87015.0,0.241337]
[1743010955351,7.174e-05,87016.0,87015.0,0.24174397]
[1743010955575,7.174e-05,87016.0,87015.0,0.33832167]
[1743010955804,0.01807481,87016.0,87015.0,0.24174397]
[1743010957912,0.03955319,87016.0,87015.0,0.24174397]
[1743010959141,0.03955319,87016.0,87015.0,0.00040697]
[1743010959385,0.26939519,87016.0,87015.0,0.00040697]
[1743010959575,1.69070919,87016.0,87015.0,0.00040697]
[1743010959773,1.40277019,87016.0,87015.0,0.00040697]
[1743010959979,1.21144019,87016.0,87015.0,0.00040697]
[1743010960225,1.03014319,87016.0,87015.0,0.00040697]
[1743010960946,0.66309019,87016.0,87015.0,0.00040697]
[1743010961112,0.27420619,87016.0,87015.0,0.23025197]
[1743010961342,0.77785755,87016.0,87015.0,0.00040697]
[1743010961532,0.011492,87012.0,87006.0,0.41540868]
[1743010961790,0.312166,87007.0,87006.0,0.41581584]
[1743010961999,1.02254,87007.0,87006.0,0.41581584]
[1743010962505,0.361066,87007.0,87006.0,0.45739742]
[1743010962701,0.39056427,87007.0,87006.0,0.41581584]
[1743010962919,1.82152738,87007.0,87006.0,0.00040716]
[1743010963128,0.241428,86982.0,86981.0,0.0003384]
[1743010963332,0.541428,86982.0,86981.0,0.0003384]
[1743010963538,1.058389,86982.0,86981.0,0.00074543]
[1743010963755,0.604499,86982.0,86981.0,0.00074543]
[1743010963963,0.3,86982.0,86981.0,0.00074543]
[1743010964175,0.35590001,86982.0,86981.0,0.00074543]
[1743010965001,0.58583201,86982.0,86981.0,0.00074543]
[1743010965213,0.59732801,86982.0,86981.0,0.00074543]
[1743010965809,0.6153394,86982.0,86981.0,0.00074543]
[1743010966633,0.6153394,86982.0,86981.0,0.00174543]
[1743010967848,0.8825124,86982.0,86981.0,0.00174543]
[1743010968269,0.84809077,86982.0,86981.0,0.00174543]
[1743010969892,0.84809077,86982.0,86981.0,0.00074543]
[1743010970058,0.84909077,86982.0,86981.0,0.00074543]
[1743010971563,0.84809077,86982.0,86981.0,0.00074543]
[1743010971707,0.49851838,86982.0,86981.0,0.00074543]
[1743010972048,0.32335179,86982.0,86981.0,0.25604937]
[1743010972251,0.32335179,86982.0,86981.0,0.26754537]
[1743010972459,0.02347838,86982.0,86981.0,0.24217643]
[1743010972921,0.02247838,86982.0,86981.0,0.24217643]
[1743010973127,0.02147838,86982.0,86981.0,0.24217643]
[1743010973540,0.25141038,86982.0,86981.0,0.00174543]
[1743010973752,0.26290638,86982.0,86981.0,0.00174543]
[1743010974015,0.241428,86982.0,86981.0,0.00174543]
[1743010974221,0.621428,86982.0,86981.0,0.00374543]
[1743010974838,0.64290638,86982.0,86981.0,0.00374543]
[1743010975046,0.66091802,86982.0,86981.0,0.00374543]
[1743010975786,0.66091802,86982.0,86981.0,0.00574543]
[1743010976262,0.58091802,86982.0,86981.0,0.00574543]
[1743010976875,0.33949002,86982.0,86981.0,0.00574543]
[1743010977083,0.33949002,86982.0,86981.0,0.24717643]
[1743010977286,0.03949002,86982.0,86981.0,0.32133167]
[1743010977535,0.03949002,86982.0,86981.0,0.24717643]
[1743010977793,0.03949002,86982.0,86981.0,0.00574543]
[1743010978207,0.28091802,86982.0,86981.0,0.00574543]
[1743010978445,0.03949002,86982.0,86981.0,0.00574543]
[1743010978664,0.26942202,86982.0,86981.0,0.00574543]
[1743010979295,0.28091802,86982.0,86981.0,0.00574543]
[1743010979737,0.26942202,86982.0,86981.0,0.00574543]
[1743010979891,0.28091802,86982.0,86981.0,0.00574543]
[1743010980579,0.26942202,86982.0,86981.0,0.00574543]
[1743010980959,0.03949002,86982.0,86981.0,0.00574543]
[1743010981170,0.28091802,86982.0,86981.0,0.00574543]
[1743010982531,0.65831802,86982.0,86981.0,0.00574543]
[1743010982739,0.68680638,86982.0,86981.0,0.00374543]
[1743010982972,4.36669638,86982.0,86981.0,0.00074543]
[1743010983178,4.03388338,86982.0,86981.0,0.00174543]
[1743010983394,2.72096638,86982.0,86981.0,0.00374543]
[1743010983589,2.38129732,86982.0,86981.0,0.00174543]
[1743010983794,2.38229732,86982.0,86981.0,0.00174543]
[1743010984556,2.38229732,86982.0,86981.0,0.00074543]
[1743010985034,2.38429732,86982.0,86981.0,0.00074543]
[1743010985603,2.40231071,86982.0,86981.0,0.00074543]
[1743010986218,2.42185156,86982.0,86981.0,4.3e-07]
[1743010986444,0.7594023,86982.0,86981.0,4.3e-07]
[1743010987137,0.7584023,86982.0,86981.0,4.3e-07]
[1743010987365,0.7624023,86982.0,86981.0,0.00033883]
[1743010987570,0.7605715,86982.0,86981.0,8.3e-07]
[1743010987997,0.7675715,86982.0,86981.0,8.3e-07]
[1743010988476,0.7645715,86982.0,86981.0,8.3e-07]
[1743010988890,0.7695715,86982.0,86981.0,8.3e-07]
[1743010989099,0.75003065,86982.0,86981.0,8.3e-07]
[1743010991417,0.7695715,86982.0,86981.0,8.3e-07]
[1743010992762,0.541481,86963.0,86962.0,0.0003384]
[1743010992950,0.675161,86963.0,86962.0,0.0003384]
[1743010993174,0.752461,86963.0,86962.0,0.0003384]
[1743010993379,0.011502,86941.0,86940.0,0.0003386]
[1743010993571,0.541543,86941.0,86940.0,0.0003386]
[1743010993771,0.530041,86941.0,86940.0,0.0003386]
[1743010994026,0.3,86941.0,86940.0,0.0003386]
[1743010994262,0.3,86941.0,86940.0,0.3249836]
[1743010994473,0.3,86950.0,86946.0,0.230027]
[1743010994583,0.230024,86948.0,86946.0,0.230027]
[1743010994798,0.23045044,86948.0,86945.0,0.24153]
[1743010995011,0.3,86947.0,86943.0,0.230034]
[1743010995456,0.3,86947.0,86942.0,0.230036]
[1743010995457,0.3,86947.0,86946.0,0.230027]
[1743010995693,0.31801824,86947.0,86946.0,0.241528]
[1743010995924,0.01801824,86947.0,86946.0,0.27111569]
[1743010996141,0.01801824,86947.0,86946.0,0.241528]
[1743010996347,0.01801824,86947.0,86941.0,0.059002]
[1743010996348,0.011501,86946.0,86941.0,0.0475]
[1743010996560,0.01901824,86947.0,86941.0,0.0475]
[1743010996561,0.26054424,86947.0,86941.0,0.011502]
[1743010996796,0.01901824,86947.0,86945.0,0.230029]
[1743010997014,0.01901824,86947.0,86941.0,0.011502]
[1743010997266,0.01901824,86947.0,86940.0,0.0003386]
[1743010997503,0.230041,86941.0,86940.0,0.0003386]
[1743010998406,0.25154357,86941.0,86940.0,0.0003386]
[1743010999539,0.230041,86941.0,86940.0,0.0003386]
[1743010999779,0.241543,86941.0,86940.0,0.0043386]
[1743010999999,0.230041,86941.0,86940.0,0.0043386]
[1743011000218,0.241543,86941.0,86940.0,0.0043386]
[1743011000707,0.541543,86941.0,86940.0,0.0043386]
[1743011001570,0.541543,86941.0,86940.0,0.0003386]
[1743011001772,0.541543,86941.0,86940.0,0.0013386]
[1743011002423,0.62545038,86941.0,86940.0,0.0013386]
[1743011002629,3.31280738,86941.0,86940.0,0.0013386]
[1743011002999,3.22546338,86941.0,86940.0,0.0013386]
[1743011003216,3.21421138,86941.0,86940.0,0.0013386]
[1743011003630,3.01179838,86941.0,86940.0,0.0023386]
[1743011003825,2.79575638,86941.0,86940.0,0.0003386]
[1743011004206,2.79775638,86941.0,86940.0,0.0003386]
[1743011004681,1.81421238,86941.0,86940.0,0.0003386]
[1743011004884,1.19022438,86941.0,86940.0,0.0003386]
[1743011005694,1.20824577,86941.0,86940.0,0.0003386]
[1743011006955,3.72103377,86941.0,86940.0,0.0003386]
[1743011007154,2.94893977,86941.0,86940.0,0.0003386]
[1743011007364,2.91144477,86941.0,86940.0,0.0003386]
[1743011007976,0.011503,86929.0,86928.0,0.0003386]
[1743011008193,0.011507,86897.0,86896.0,0.0776]
[1743011008400,0.230162,86895.0,86892.0,0.59752]
[1743011008616,0.01802551,86897.0,86892.0,0.827689]
[1743011008821,0.23016,86896.0,86892.0,0.59752]
[1743011009036,0.230162,86895.0,86892.0,0.59752]
[1743011009243,0.01802551,86897.0,86895.0,0.23016]
[1743011009454,0.01802551,86897.0,86894.0,0.23063404]
[1743011009667,0.230162,86895.0,86894.0,0.00046904]
[1743011009883,0.01141948,86895.0,86894.0,0.00046904]
[1743011010085,0.230162,86896.0,86894.0,0.00046904]
[1743011010508,0.01802551,86897.0,86894.0,0.00046904]
[1743011010723,0.230162,86895.0,86894.0,0.00046904]
[1743011010933,0.01802551,86897.0,86894.0,0.23063304]
[1743011011155,0.01802551,86897.0,86896.0,0.23016]
[1743011011568,0.01802551,86897.0,86896.0,0.241668]
[1743011011778,0.3,86909.0,86907.0,0.23013]
[1743011011984,0.31177761,86909.0,86908.0,0.230128]
[1743011012227,0.31177761,86909.0,86907.0,0.241636]
[1743011012443,0.31177761,86909.0,86905.0,0.011506]
[1743011012615,0.01177761,86909.0,86907.0,0.23013]
[1743011012840,0.530123,86910.0,86907.0,0.23013]
[1743011013474,0.230133,86906.0,86902.0,0.230143]
[1743011013679,0.011506,86904.0,86898.0,0.011507]
[1743011014300,0.230138,86905.0,86901.0,0.230146]
[1743011014514,0.230135,86906.0,86901.0,0.230146]
[1743011014726,0.01802556,86905.0,86903.0,0.230141]
[1743011014940,0.24816156,86905.0,86902.0,0.241651]
[1743011015093,0.24816256,86905.0,86902.0,0.241651]
[1743011015274,0.01802556,86905.0,86903.0,0.23014]
[1743011015473,0.24816356,86905.0,86902.0,0.230144]
[1743011015680,0.24816356,86905.0,86900.0,0.011507]
[1743011015681,0.011506,86904.0,86899.0,0.230152]
[1743011015898,0.011506,86904.0,86899.0,0.011507]
[1743011016211,0.230142,86903.0,86900.0,0.230147]
[1743011016679,0.011507,86897.0,86892.0,0.839198]
[1743011016916,0.24167,86895.0,86891.0,0.002]
[1743011017684,0.2596968,86895.0,86891.0,0.002]
[1743011022798,0.24167,86895.0,86891.0,0.002]
[1743011025354,1.06763,86895.0,86891.0,0.002]
[1743011025574,0.848205,86895.0,86891.0,0.002]
[1743011025783,0.86623335,86895.0,86891.0,0.002]
[1743011026036,0.8749083,86895.0,86891.0,0.002]
[1743011026286,0.9568083,86895.0,86891.0,0.002]
[1743011027045,0.8749083,86895.0,86891.0,0.002]
[1743011027256,0.5683733,86895.0,86891.0,0.002]
[1743011027462,1.7012463,86895.0,86891.0,0.002]
[1743011028263,1.7022463,86895.0,86891.0,0.002]
[1743011030275,1.7504463,86895.0,86891.0,0.002]
[1743011030952,1.7494463,86895.0,86891.0,0.002]
[1743011031165,1.7514463,86895.0,86891.0,0.002]
[1743011031403,1.3711483,86895.0,86891.0,0.002]
[1743011031585,1.2353883,86895.0,86891.0,0.002]
[1743011031787,0.79531595,86895.0,86891.0,0.002]
[1743011032677,0.79631595,86895.0,86891.0,0.002]
[1743011033230,0.79931595,86895.0,86891.0,0.002]
[1743011033439,0.79831595,86895.0,86891.0,0.002]
[1743011033841,0.79731595,86895.0,86891.0,0.002]
[1743011034638,0.79531595,86895.0,86891.0,0.002]
[1743011035005,0.81534582,86895.0,86891.0,0.002]
[1743011035815,0.81634582,86895.0,86891.0,0.002]
[1743011036193,0.68258582,86895.0,86891.0,0.002]
[1743011041709,0.57137482,86895.0,86891.0,0.002]
[1743011041912,2.23295482,86895.0,86891.0,0.002]
[1743011042118,1.73721282,86895.0,86891.0,0.002]
[1743011042326,1.33057182,86895.0,86891.0,0.002]
[1743011042563,1.00424582,86895.0,86891.0,0.002]
[1743011042812,0.82249495,86895.0,86891.0,0.002]
[1743011045793,0.84052521,86895.0,86891.0,0.002]
[1743011050918,0.97428521,86895.0,86891.0,0.002]
[1743011052745,0.95625495,86895.0,86891.0,0.002]
[1743011054752,0.9778522,86895.0,86891.0,0.002]
[1743011055712,0.72673249,86895.0,86891.0,0.002]
[1743011055919,5.25657449,86895.0,86891.0,0.002]
[1743011056121,4.80744149,86895.0,86891.0,0.002]
[1743011056561,0.541723,86876.0,86875.0,0.0003384]
[1743011056804,1.697808,86876.0,86875.0,0.00046881]
[1743011057011,1.725263,86876.0,86875.0,0.00046881]
[1743011057447,1.74946958,86876.0,86875.0,0.00046881]
[1743011058497,1.17836858,86876.0,86875.0,0.00046881]
[1743011058708,0.58135258,86876.0,86875.0,0.00046881]
[1743011058883,0.76661258,86876.0,86875.0,0.00046881]
[1743011059251,0.58135258,86876.0,86875.0,0.00046881]
[1743011060659,0.55975533,86876.0,86875.0,0.00046881]
[1743011062626,0.541723,86876.0,86875.0,0.00046881]
[1743011065815,0.55975515,86876.0,86875.0,0.00046881]
[1743011068734,0.31803215,86876.0,86875.0,0.00046881]
[1743011068950,0.01803215,86876.0,86875.0,0.24219381]
[1743011069377,0.01803215,86876.0,86875.0,0.32419381]
[1743011070444,0.01803215,86876.0,86875.0,0.24219381]
[1743011072128,0.3,86889.0,86888.0,0.230181]
[1743011072344,1.52694,86889.0,86888.0,0.230181]
[1743011073358,1.52794,86889.0,86888.0,0.230181]
[1743011074009,1.39525,86889.0,86888.0,0.230181]
[1743011074843,0.905024,86889.0,86888.0,0.230181]
[1743011075861,0.879375,86889.0,86888.0,0.230181]
[1743011076090,0.654782,86889.0,86888.0,0.230181]
[1743011076315,0.481733,86889.0,86888.0,0.230181]
[1743011076750,0.303,86889.0,86888.0,0.230181]
[1743011078241,0.301,86889.0,86888.0,0.230181]
[1743011078444,0.485532,86889.0,86888.0,0.230181]
[1743011079663,0.484532,86889.0,86888.0,0.230181]
[1743011080700,0.484532,86889.0,86887.0,0.230184]
[1743011080951,0.982007,86888.0,86887.0,0.230184]
[1743011081079,1.434727,86888.0,86887.0,0.230184]
[1743011081283,0.800898,86888.0,86887.0,0.230184]
[1743011081529,0.466986,86888.0,86887.0,0.230184]
[1743011081787,0.466986,86888.0,86887.0,0.241693]
[1743011081958,0.3,86888.0,86887.0,0.241693]
[1743011082125,0.0001695,86891.0,86882.0,0.0765]
[1743011082890,0.3,86889.0,86882.0,0.0765]
[1743011083861,0.230194,86883.0,86882.0,0.0765]
[1743011085086,0.230194,86883.0,86875.0,0.00046881]
[1743011085087,0.241723,86876.0,86875.0,0.00046881]
[1743011097051,0.25975469,86876.0,86875.0,0.00046881]
[1743011100464,1.37680269,86876.0,86875.0,0.00046881]
[1743011100708,1.02695569,86876.0,86875.0,0.00046881]
[1743011102390,0.93645769,86876.0,86875.0,0.00046881]
[1743011102596,0.55975469,86876.0,86875.0,0.00046881]
[1743011102801,0.541723,86876.0,86875.0,0.00046881]
[1743011105843,0.55975517,86876.0,86875.0,0.00046881]
[1743011108417,0.56826414,86876.0,86875.0,0.00046881]
[1743011112342,0.65506414,86876.0,86875.0,0.00046881]
[1743011112704,0.63703197,86876.0,86875.0,0.00046881]
[1743011115083,0.63703197,86876.0,86875.0,0.30598381]
[1743011115084,0.0868,86876.0,86875.0,0.30598381]
[1743011115294,0.0868,86876.0,86875.0,0.39444329]
[1743011116455,0.0878,86876.0,86875.0,0.36269381]
[1743011116664,0.0888,86876.0,86875.0,0.36269381]
[1743011117130,0.10682959,86876.0,86875.0,0.91823269]
[1743011117368,0.10301462,86902.0,86890.0,0.241684]
[1743011117574,0.10301462,86902.0,86890.0,0.961444]
[1743011117575,0.3,86901.0,86890.0,0.961444]
[1743011117791,0.01802855,86895.0,86890.0,1.07570164]
[1743011118556,0.01802855,86895.0,86890.0,1.07470164]
[1743011118979,0.01802855,86895.0,86890.0,1.20350013]
[1743011119208,0.23861088,86922.0,86890.0,1.61890881]
[1743011119407,0.011504,86925.0,86890.0,1.62090881]
[1743011119408,0.01802708,86905.0,86890.0,1.62090881]
[1743011119614,5e-07,86891.0,86890.0,1.62090881]
[1743011119826,5e-07,86891.0,86890.0,1.75458881]
[1743011120027,0.10301462,86926.0,86923.0,0.0827]
[1743011120228,0.10301462,86926.0,86924.0,0.0384304]
[1743011120630,0.12103765,86926.0,86924.0,0.0384304]
[1743011121250,0.230083,86925.0,86924.0,0.0384304]
[1743011121452,0.13296548,86926.0,86924.0,0.0384304]
[1743011121658,0.43296548,86926.0,86925.0,0.241587]
[1743011121826,0.41494245,86926.0,86925.0,0.241587]
[1743011122415,0.31192783,86926.0,86925.0,0.241587]
[1743011122949,0.31192783,86926.0,86925.0,0.35548764]
[1743011123157,0.31192783,86926.0,86925.0,0.35648764]
[1743011123358,0.31192783,86926.0,86925.0,0.242587]
[1743011124091,0.31192783,86926.0,86925.0,0.244587]
[1743011125254,0.32995004,86926.0,86925.0,0.244587]
[1743011125380,0.32995004,86926.0,86925.0,0.003]
[1743011129286,0.02995004,86926.0,86925.0,0.014504]
[1743011130395,0.02995004,86926.0,86925.0,0.244587]
[1743011130570,0.03011964,86926.0,86925.0,0.244587]
[1743011132745,0.01209743,86926.0,86925.0,0.244587]
[1743011133758,0.00059812,86926.0,86925.0,0.244587]
[1743011134937,0.01200273,86926.0,86925.0,0.003]
[1743011135357,0.01200273,86926.0,86925.0,0.233083]
[1743011135613,0.00059812,86926.0,86925.0,0.244587]
[1743011135854,0.00059812,86926.0,86925.0,0.29786436]
[1743011136821,0.0001695,86928.0,86927.0,0.241581]
[1743011138546,0.0001695,86928.0,86927.0,0.244581]
[1743011138928,0.0001695,86928.0,86927.0,0.246581]
[1743011139338,0.0001695,86928.0,86927.0,0.35114676]
[1743011140292,0.0001695,86928.0,86927.0,0.246581]
[1743011144515,0.0001695,86928.0,86927.0,0.326981]
[1743011144763,0.0001695,86928.0,86927.0,0.374481]
[1743011144981,0.01818895,86928.0,86927.0,0.374481]
[1743011145429,0.01818895,86928.0,86927.0,0.372481]
[1743011145630,0.01818895,86928.0,86927.0,0.49073864]
[1743011145876,0.0001695,86928.0,86927.0,0.49073864]
[1743011146105,0.0001695,86928.0,86927.0,0.48773864]
[1743011146304,0.01818933,86928.0,86927.0,0.48373864]
[1743011146514,0.01818933,86928.0,86927.0,0.48873864]
[1743011146716,0.01818933,86928.0,86927.0,0.48373864]
[1743011147693,0.01818933,86928.0,86927.0,0.48873864]
[1743011147886,0.00878745,86928.0,86927.0,0.48873864]
[1743011148095,0.00878745,86928.0,86927.0,0.50327949]
[1743011148323,0.3,86955.0,86949.0,0.0115]
[1743011148706,0.3,86955.0,86946.0,0.011501]
[1743011148707,0.230014,86951.0,86947.0,0.230023]
[1743011148915,0.3,86951.0,86948.0,0.230021]
[1743011149119,0.3,86951.0,86950.0,0.230017]
[1743011149500,0.3,86951.0,86949.0,0.230019]
[1743011149877,0.3,86952.0,86951.0,0.230014]
[1743011150081,0.3,86954.0,86952.0,0.230011]
[1743011150310,0.3,86954.0,86950.0,0.0609547]
[1743011150311,0.3,86954.0,86951.0,0.0115]
[1743011150511,0.3,86954.0,86952.0,0.230011]
[1743011150715,0.3,86954.0,86951.0,0.241514]
[1743011150716,0.3,86954.0,86953.0,0.230009]
[1743011151032,0.3,86954.0,86953.0,0.05439817]
[1743011151240,0.01167556,86955.0,86954.0,0.241506]
[1743011151444,0.0001692,86962.0,86961.0,0.241487]
[1743011152001,0.0001692,86962.0,86961.0,0.240487]
[1743011152416,0.01166114,86962.0,86961.0,0.240487]
[1743011152776,0.0001692,86962.0,86961.0,0.240487]
[1743011152981,0.0001692,86962.0,86961.0,0.31742631]
[1743011153412,0.01173389,86962.0,86961.0,0.31742631]
[1743011153616,0.0001692,86962.0,86961.0,0.31742631]
[1743011154031,0.01162303,86962.0,86961.0,0.31742631]
[1743011154236,0.0001692,86962.0,86961.0,0.31742631]
[1743011154417,0.0001692,86962.0,86961.0,0.32042631]
[1743011154571,0.24166231,86962.0,86961.0,0.005]
[1743011154791,0.25316131,86962.0,86961.0,0.005]
[1743011155608,0.25316131,86962.0,86961.0,0.003]
[1743011155833,0.230004,86955.0,86950.0,0.0115]
[1743011156036,0.230006,86954.0,86952.0,0.64541968]
[1743011156236,0.241506,86954.0,86952.0,0.41540868]
[1743011157320,0.241506,86954.0,86949.0,0.230017]
[1743011157442,0.241506,86954.0,86953.0,0.00313041]
[1743011157856,0.01801549,86955.0,86953.0,0.00313041]
[1743011158075,0.01801549,86955.0,86954.0,0.241506]
[1743011158278,0.01801549,86955.0,86954.0,0.230006]
[1743011158639,0.01801549,86955.0,86954.0,0.241506]
[1743011159471,0.01801549,86955.0,86954.0,0.243506]
[1743011160208,0.01801549,86955.0,86954.0,0.245506]
[1743011163170,0.01801549,86955.0,86954.0,0.004]
[1743011163171,0.24801949,86955.0,86954.0,0.004]
[1743011163375,0.25951949,86955.0,86954.0,0.004]
[1743011164959,0.55951949,86955.0,86954.0,0.004]
[1743011165170,0.63631949,86955.0,86954.0,0.004]
[1743011165513,0.241578,86928.0,86921.0,0.59744]
[1743011165716,0.241578,86928.0,86927.0,0.00046953]
[1743011166129,1.919065,86928.0,86927.0,0.00046953]
[1743011166351,1.79947182,86928.0,86927.0,0.00046953]
[1743011166973,1.79947182,86928.0,86927.0,0.00546953]
[1743011167396,0.541609,86917.0,86916.0,0.10222694]
[1743011167600,1.76262,86917.0,86916.0,0.10265546]
[1743011167805,1.709539,86917.0,86916.0,0.10265546]
[1743011168213,1.72756356,86917.0,86916.0,0.00042852]
[1743011169133,1.72756356,86917.0,86916.0,0.00142852]
[1743011169915,1.80506356,86917.0,86916.0,0.00142852]
[1743011170331,1.80506356,86917.0,86916.0,0.00042852]
[1743011170745,1.80506356,86917.0,86916.0,0.00342852]
[1743011171971,1.80506356,86917.0,86916.0,0.00142852]
[1743011173894,1.80606356,86917.0,86916.0,0.00042852]
[1743011174315,1.67558356,86917.0,86916.0,0.00042852]
[1743011174647,1.81210356,86917.0,86916.0,0.00042852]
[1743011175862,0.77765356,86917.0,86916.0,0.00042852]
[1743011176127,4.40940356,86917.0,86916.0,0.00042852]
[1743011176539,4.40640356,86917.0,86916.0,0.00042852]
[1743011176900,4.41040356,86917.0,86916.0,0.00042852]
[1743011177306,4.40640356,86917.0,86916.0,0.00042852]
[1743011177712,0.241678,86892.0,86884.0,0.59744]
[1743011177923,0.241678,86892.0,86891.0,0.0004695]
[1743011178318,0.25970727,86892.0,86891.0,0.0004695]
[1743011178818,0.57122432,86892.0,86891.0,0.0004695]
[1743011179626,1.38521232,86892.0,86891.0,0.0004695]
[1743011180065,1.38521232,86892.0,86891.0,0.0024695]
[1743011180470,1.38521232,86892.0,86891.0,0.0004695]
[1743011180693,1.38521232,86892.0,86891.0,0.0034695]
[1743011180852,1.38621232,86892.0,86891.0,0.0034695]
[1743011181055,1.38621232,86892.0,86891.0,0.0004695]
[1743011181253,1.38521232,86892.0,86891.0,0.0004695]
[1743011181663,1.38621232,86892.0,86891.0,0.0004695]
[1743011182208,1.38688932,86892.0,86891.0,0.0004695]
[1743011183678,1.36886005,86892.0,86891.0,0.0004695]
[1743011185805,1.39025084,86892.0,86891.0,0.0004695]
[1743011187167,1.38925084,86892.0,86891.0,0.0004695]
[1743011187353,1.39025084,86892.0,86891.0,0.0004695]
[1743011187889,1.39125084,86892.0,86891.0,0.0004695]
[1743011188309,1.39025084,86892.0,86891.0,0.0004695]
[1743011188509,1.36886005,86892.0,86891.0,0.0004695]
[1743011188714,1.37086005,86892.0,86891.0,0.0004695]
[1743011188921,1.36986005,86892.0,86891.0,0.0004695]
[1743011189369,1.37186005,86892.0,86891.0,0.0004695]
[1743011190194,0.69075505,86892.0,86891.0,0.0004695]
[1743011190422,5.52941505,86892.0,86891.0,0.0004695]
[1743011190702,5.52941505,86892.0,86891.0,5e-07]
[1743011190883,0.230213,86876.0,86861.0,0.002]
[1743011191129,0.541762,86862.0,86861.0,0.002]
[1743011191355,4.977975,86862.0,86861.0,0.00213013]
[1743011191582,3.927121,86862.0,86861.0,0.00213013]
[1743011191810,2.83443799,86862.0,86861.0,0.00213013]
[1743011192052,2.85746969,86862.0,86861.0,0.00213013]
[1743011192495,2.86605552,86862.0,86861.0,0.00213013]
[1743011192776,2.84801853,86862.0,86861.0,0.00213013]
[1743011194368,2.93031853,86862.0,86861.0,0.00246913]
[1743011195032,2.93031853,86862.0,86859.0,0.0003386]
[1743011195033,0.541767,86860.0,86859.0,0.0003386]
[1743011195207,5.645109,86860.0,86859.0,0.00046898]
[1743011195775,5.66314777,86860.0,86859.0,0.00046898]
[1743011196220,5.66514777,86860.0,86859.0,0.00046898]
[1743011197875,5.08463677,86860.0,86859.0,0.00046898]
[1743011201040,5.08463677,86860.0,86859.0,9.8e-07]
[1743011201194,0.69640577,86860.0,86859.0,9.8e-07]
[1743011201406,0.69640577,86860.0,86853.0,0.0003388]
[1743011201407,0.541784,86854.0,86853.0,0.00029978]
[1743011201580,5.511526,86854.0,86853.0,0.00043013]
[1743011202801,5.515526,86854.0,86853.0,0.00043013]
[1743011204606,0.241801,86848.0,86841.0,0.0003388]
[1743011204820,5.511543,86848.0,86847.0,0.00046874]
[1743011205458,5.455193,86848.0,86847.0,0.00046874]
[1743011205798,5.47323284,86848.0,86847.0,0.00046874]
[1743011206107,5.47623284,86848.0,86847.0,0.00046874]
[1743011207771,5.49931342,86848.0,86847.0,0.00046874]
[1743011208213,0.541818,86842.0,86841.0,0.0003388]
[1743011208396,0.541818,86842.0,86840.0,0.0003388]
[1743011208397,0.54182,86841.0,86840.0,0.0003388]
[1743011208600,0.54182,86841.0,86840.0,0.00046878]
[1743011208601,5.511562,86841.0,86840.0,0.00046878]
[1743011209514,5.173015,86841.0,86840.0,0.00046878]
[1743011210527,5.175015,86841.0,86840.0,0.00046878]
[1743011211076,5.178015,86841.0,86840.0,0.00046878]
[1743011215364,5.183015,86841.0,86840.0,0.00046878]
[1743011215565,5.180015,86841.0,86840.0,0.00046878]
[1743011215766,5.183015,86841.0,86840.0,7.8e-07]
[1743011215976,0.541887,86817.0,86816.0,0.0499]
[1743011216183,0.541887,86817.0,86816.0,0.05003005]
[1743011216388,2.817717,86817.0,86816.0,0.05003005]
[1743011216624,2.8292911,86817.0,86816.0,0.05003005]
[1743011216830,2.5881501,86817.0,86816.0,0.05003005]
[1743011217035,2.5881501,86817.0,86816.0,0.00013005]
[1743011217408,2.6061943,86817.0,86816.0,0.00013005]
[1743011217636,2.61470172,86817.0,86816.0,0.00013005]
[1743011218430,2.61770172,86817.0,86816.0,0.00013005]
[1743011218634,2.61770172,86817.0,86816.0,0.00029965]
[1743011220003,2.61870172,86817.0,86816.0,0.00029965]
[1743011220378,0.541912,86808.0,86807.0,0.0003388]
[1743011220579,0.541912,86808.0,86807.0,0.00075056]
[1743011220779,2.472722,86808.0,86807.0,0.00075056]